[Event "*** Titled Tuesday Blitz"]
[Site "Chess.com"]
[Date "2018.11.06"]
[Round "6"]
[White "Paparama_1917"]
[Black "jcibarra"]
[Result "0-1"]
[WhiteElo "2576"]
[BlackElo "2638"]
[TimeControl "180+2"]
[EndTime "14:21:43 PST"]
[Termination "jcibarra won by resignation"]

1. e4 {[%clk 0:03:00.3]} 1... e5 {[%clk 0:03:00.2]} 2. Nf3 {[%clk 0:03:01]} 2...
Nc6 {[%clk 0:03:01.2]} 3. Bb5 {[%clk 0:02:58]} 3... g6 {[%clk 0:03:01.3]} 4. c3
{[%clk 0:02:56.4]} 4... a6 {[%clk 0:02:58.3]} 5. Ba4 {[%clk 0:02:56.7]} 5... d6
{[%clk 0:02:58.7]} 6. d4 {[%clk 0:02:56.6]} 6... Bd7 {[%clk 0:02:59]} 7. h4
{[%clk 0:02:56.8]} 7... Nf6 {[%clk 0:02:55.9]} 8. Qe2 {[%clk 0:02:49.5]} 8...
Bg7 {[%clk 0:02:56.4]} 9. Bxc6 {[%clk 0:02:29.1]} 9... Bxc6 {[%clk 0:02:56.7]}
10. dxe5 {[%clk 0:02:29.2]} 10... Nxe4 {[%clk 0:02:55.9]} 11. Nbd2 {[%clk
0:02:12.5]} 11... Nxd2 {[%clk 0:02:39.6]} 12. Bxd2 {[%clk 0:02:10]} 12... O-O
{[%clk 0:02:34.1]} 13. Bg5 {[%clk 0:02:10.1]} 13... Qd7 {[%clk 0:02:19]} 14.
O-O-O {[%clk 0:02:07.8]} 14... Qe6 {[%clk 0:02:13.1]} 15. Nd4 {[%clk 0:01:50.2]}
15... Qxa2 {[%clk 0:02:11.6]} 16. Nxc6 {[%clk 0:01:49.5]} 16... bxc6 {[%clk
0:02:03.1]} 17. Bf6 {[%clk 0:01:12.8]} 17... Rab8 {[%clk 0:01:45.9]} 18. Qc2
{[%clk 0:01:05]} 18... Bh6+ {[%clk 0:01:40.1]} 19. Bg5 {[%clk 0:01:05.2]} 19...
Bxg5+ {[%clk 0:01:25.1]} 20. hxg5 {[%clk 0:01:06.6]} 20... dxe5 {[%clk
0:01:26.5]} 21. Rh4 {[%clk 0:01:05.3]} 21... Rb3 {[%clk 0:01:12]} 22. Qb1 {[%clk
0:00:45.4]} 22... Qxb1+ {[%clk 0:01:08.3]} 23. Kxb1 {[%clk 0:00:46.4]} 23...
Rfb8 {[%clk 0:01:09.9]} 24. Rd2 {[%clk 0:00:46.2]} 24... Rxc3 {[%clk 0:01:10.2]}
25. Ra4 {[%clk 0:00:43.3]} 25... Rb6 {[%clk 0:01:04.3]} 26. Rxa6 {[%clk
0:00:42.3]} 26... Rxa6 {[%clk 0:00:51.8]} 27. bxc3 {[%clk 0:00:43]} 27... Ra5
{[%clk 0:00:45]} 28. f3 {[%clk 0:00:30.8]} 28... Rd5 {[%clk 0:00:40]} 29. Re2
{[%clk 0:00:26.3]} 29... Kf8 {[%clk 0:00:39.7]} 30. Kc2 {[%clk 0:00:25.6]} 30...
Ke7 {[%clk 0:00:40.9]} 31. Re4 {[%clk 0:00:25.4]} 31... Kd6 {[%clk 0:00:27.6]}
32. Rh4 {[%clk 0:00:24.8]} 32... e4 {[%clk 0:00:27.9]} 33. fxe4 {[%clk
0:00:17.8]} 33... Rxg5 {[%clk 0:00:28.7]} 34. Rxh7 {[%clk 0:00:17.7]} 34...
Rxg2+ {[%clk 0:00:29.4]} 35. Kd3 {[%clk 0:00:19]} 35... Ke6 {[%clk 0:00:29.3]}
36. Rh8 {[%clk 0:00:19.2]} 36... Rg3+ {[%clk 0:00:30]} 37. Kd4 {[%clk
0:00:19.5]} 37... c5+ {[%clk 0:00:30.6]} 38. Kc4 {[%clk 0:00:20.1]} 38... Re3
{[%clk 0:00:31.3]} 39. Re8+ {[%clk 0:00:20.7]} 39... Kd7 {[%clk 0:00:31.9]} 40.
Re5 {[%clk 0:00:21.5]} 40... f6 {[%clk 0:00:31]} 41. Rd5+ {[%clk 0:00:22.1]}
41... Ke6 {[%clk 0:00:32.3]} 42. Rxc5 {[%clk 0:00:22.9]} 42... Rxe4+ {[%clk
0:00:25.8]} 43. Kb5 {[%clk 0:00:23]} 43... Re5 {[%clk 0:00:14.1]} 0-1

[Event "*** Titled Tuesday Blitz"]
[Site "Chess.com"]
[Date "2018.11.06"]
[Round "6"]
[White "RegZryt"]
[Black "MITerryble"]
[Result "0-1"]
[WhiteElo "2514"]
[BlackElo "2765"]
[TimeControl "180+2"]
[EndTime "14:21:49 PST"]
[Termination "MITerryble won by resignation"]

1. d4 {[%clk 0:03:01.9]} 1... e6 {[%clk 0:03:01.1]} 2. Nf3 {[%clk 0:03:01.4]}
2... Nf6 {[%clk 0:02:57.2]} 3. c4 {[%clk 0:03:01.5]} 3... Bb4+ {[%clk
0:02:56.9]} 4. Bd2 {[%clk 0:03:02.4]} 4... c5 {[%clk 0:02:56.6]} 5. Bxb4 {[%clk
0:03:00.3]} 5... cxb4 {[%clk 0:02:57.4]} 6. e3 {[%clk 0:02:58.2]} 6... O-O
{[%clk 0:02:55.8]} 7. Bd3 {[%clk 0:02:56.4]} 7... a5 {[%clk 0:02:55.7]} 8. a3
{[%clk 0:02:57]} 8... Na6 {[%clk 0:02:56.3]} 9. O-O {[%clk 0:02:54.9]} 9... d6
{[%clk 0:02:54.3]} 10. Nbd2 {[%clk 0:02:49]} 10... Qe7 {[%clk 0:02:53.5]} 11.
Qb1 {[%clk 0:02:30.8]} 11... e5 {[%clk 0:02:52.6]} 12. a4 {[%clk 0:02:27.3]}
12... Re8 {[%clk 0:02:50.3]} 13. Bc2 {[%clk 0:02:17.9]} 13... Bg4 {[%clk
0:02:46.8]} 14. b3 {[%clk 0:02:16.8]} 14... Rad8 {[%clk 0:02:36.9]} 15. h3
{[%clk 0:02:15.6]} 15... Bh5 {[%clk 0:02:30.5]} 16. Ng5 {[%clk 0:02:03.3]} 16...
Bg6 {[%clk 0:02:17.7]} 17. Bxg6 {[%clk 0:02:02.7]} 17... hxg6 {[%clk 0:02:19.6]}
18. Re1 {[%clk 0:01:49.9]} 18... e4 {[%clk 0:02:09.2]} 19. h4 {[%clk 0:01:45.7]}
19... Nc7 {[%clk 0:02:08.9]} 20. Nf1 {[%clk 0:01:31.5]} 20... d5 {[%clk
0:02:08.4]} 21. c5 {[%clk 0:01:31.1]} 21... Ne6 {[%clk 0:02:03.7]} 22. Nxe6
{[%clk 0:01:30.6]} 22... Qxe6 {[%clk 0:02:05.6]} 23. Qd1 {[%clk 0:01:31.7]}
23... Ng4 {[%clk 0:01:50.9]} 24. Qe2 {[%clk 0:01:27]} 24... Re7 {[%clk
0:01:49.7]} 25. Nh2 {[%clk 0:01:25.3]} 25... Nf6 {[%clk 0:01:46.9]} 26. Nf1
{[%clk 0:01:26]} 26... Ra8 {[%clk 0:01:38.6]} 27. Rac1 {[%clk 0:01:26]} 27...
Rc7 {[%clk 0:01:26]} 28. Rc2 {[%clk 0:01:26.5]} 28... Rc6 {[%clk 0:01:20.9]} 29.
Rec1 {[%clk 0:01:24.6]} 29... Qe7 {[%clk 0:01:03.5]} 30. g3 {[%clk 0:01:19.8]}
30... Qd7 {[%clk 0:00:59.1]} 31. Kg2 {[%clk 0:01:13.2]} 31... Qf5 {[%clk
0:00:51.1]} 32. Nh2 {[%clk 0:01:11.7]} 32... Qe6 {[%clk 0:00:51.3]} 33. Qb5
{[%clk 0:01:03.5]} 33... Ra7 {[%clk 0:00:51.3]} 34. Qe2 {[%clk 0:01:02.7]} 34...
Qf5 {[%clk 0:00:50.5]} 35. Rh1 {[%clk 0:00:51.1]} 35... Ra8 {[%clk 0:00:47.1]}
36. Rhc1 {[%clk 0:00:49.1]} 36... g5 {[%clk 0:00:43.4]} 37. hxg5 {[%clk
0:00:35.2]} 37... Qxg5 {[%clk 0:00:45.3]} 38. Rh1 {[%clk 0:00:35.9]} 38... Qf5
{[%clk 0:00:44.5]} 39. Nf1 {[%clk 0:00:36.5]} 39... Ng4 {[%clk 0:00:39.8]} 40.
Rh4 {[%clk 0:00:35.1]} 40... Rg6 {[%clk 0:00:40.7]} 41. Nh2 {[%clk 0:00:32.2]}
41... Nf6 {[%clk 0:00:41.3]} 42. c6 {[%clk 0:00:26.8]} 42... bxc6 {[%clk
0:00:43.2]} 43. Rxc6 {[%clk 0:00:27.8]} 43... Ne8 {[%clk 0:00:15.9]} 44. Rxg6
{[%clk 0:00:27.6]} 44... Qxg6 {[%clk 0:00:17.8]} 45. Qb5 {[%clk 0:00:23.6]}
45... Qe6 {[%clk 0:00:17]} 46. Rh5 {[%clk 0:00:22.2]} 46... Nf6 {[%clk
0:00:17.5]} 47. Re5 {[%clk 0:00:22.3]} 47... Qd6 {[%clk 0:00:18.5]} 48. Nf1
{[%clk 0:00:21.4]} 48... Qc7 {[%clk 0:00:17.9]} 49. Qxa5 {[%clk 0:00:19.6]}
49... Rxa5 {[%clk 0:00:17.9]} 0-1

[Event "*** Titled Tuesday Blitz"]
[Site "Chess.com"]
[Date "2018.11.06"]
[Round "6"]
[White "Morshynska"]
[Black "FearNoEvil12"]
[Result "0-1"]
[WhiteElo "2067"]
[BlackElo "1977"]
[TimeControl "180+2"]
[EndTime "14:21:50 PST"]
[Termination "FearNoEvil12 won by resignation"]

1. d4 {[%clk 0:03:01.9]} 1... b5 {[%clk 0:03:00.1]} 2. e4 {[%clk 0:03:01.5]}
2... a6 {[%clk 0:03:01.1]} 3. a4 {[%clk 0:03:01]} 3... b4 {[%clk 0:03:01]} 4.
Bd3 {[%clk 0:03:00.4]} 4... Bb7 {[%clk 0:03:01.2]} 5. Nf3 {[%clk 0:03:00.3]}
5... e6 {[%clk 0:03:02.7]} 6. c4 {[%clk 0:02:50.6]} 6... bxc3 {[%clk 0:03:01.4]}
7. bxc3 {[%clk 0:02:44.9]} 7... Nf6 {[%clk 0:03:03.3]} 8. e5 {[%clk 0:02:43.4]}
8... Nd5 {[%clk 0:02:56.9]} 9. Ng5 {[%clk 0:02:32.8]} 9... h6 {[%clk 0:02:55.5]}
10. Qh5 {[%clk 0:02:24.6]} 10... hxg5 {[%clk 0:02:38.2]} 11. Qxh8 {[%clk
0:02:22]} 11... Nc6 {[%clk 0:02:34.5]} 12. h4 {[%clk 0:01:53.2]} 12... Nf4
{[%clk 0:02:26]} 13. Bf1 {[%clk 0:01:10.8]} 13... d6 {[%clk 0:02:05.5]} 14. Ba3
{[%clk 0:00:42.1]} 14... gxh4 {[%clk 0:01:45.4]} 15. Qxh4 {[%clk 0:00:37.2]}
15... Qxh4 {[%clk 0:01:43.9]} 16. Rxh4 {[%clk 0:00:39.1]} 16... Ng6 {[%clk
0:01:44.3]} 17. Rh3 {[%clk 0:00:23.8]} 17... dxe5 {[%clk 0:01:44.3]} 18. Bxf8
{[%clk 0:00:24.4]} 18... Kxf8 {[%clk 0:01:44.6]} 19. dxe5 {[%clk 0:00:23.8]}
19... Ncxe5 {[%clk 0:01:45.5]} 20. Nd2 {[%clk 0:00:21.4]} 20... Rd8 {[%clk
0:01:44.1]} 21. Nf3 {[%clk 0:00:20]} 21... Nxf3+ {[%clk 0:01:40.1]} 22. gxf3
{[%clk 0:00:21.9]} 22... Ke7 {[%clk 0:01:40.6]} 23. Rb1 {[%clk 0:00:18.1]} 23...
Bc6 {[%clk 0:01:37.9]} 24. Bxa6 {[%clk 0:00:16.5]} 24... Bxa4 {[%clk 0:01:36.3]}
25. Be2 {[%clk 0:00:15]} 25... Bc6 {[%clk 0:01:23.5]} 26. Ra1 {[%clk 0:00:13.4]}
26... Rb8 {[%clk 0:01:18.1]} 27. Ra7 {[%clk 0:00:10.2]} 27... Kd7 {[%clk
0:01:18.2]} 28. Rh7 {[%clk 0:00:08.3]} 28... Nf4 {[%clk 0:00:50.2]} 29. Bc4
{[%clk 0:00:05.3]} 29... Bxf3 {[%clk 0:00:36.5]} 30. Rxg7 {[%clk 0:00:05]} 30...
Bh5 {[%clk 0:00:31.9]} 31. Rh7 {[%clk 0:00:04.8]} 31... Bg6 {[%clk 0:00:31.5]}
32. Rh4 {[%clk 0:00:05.6]} 32... e5 {[%clk 0:00:30]} 33. Kd2 {[%clk 0:00:05.4]}
33... Rb1 {[%clk 0:00:24.9]} 34. Rh8 {[%clk 0:00:04.2]} 34... Rb2+ {[%clk
0:00:17.4]} 35. Ke3 {[%clk 0:00:04.7]} 35... Ng2+ {[%clk 0:00:17]} 36. Kf3
{[%clk 0:00:05.9]} 36... Ne1+ {[%clk 0:00:17.2]} 37. Kg3 {[%clk 0:00:06.7]}
37... Rc2 {[%clk 0:00:17.6]} 38. Rf8 {[%clk 0:00:06.7]} 38... Rxc3+ {[%clk
0:00:17.7]} 39. Kh4 {[%clk 0:00:05.7]} 39... Rxc4+ {[%clk 0:00:18.7]} 40. Kg5
{[%clk 0:00:07]} 40... Rf4 {[%clk 0:00:18.8]} 41. f3 {[%clk 0:00:07.7]} 41...
Nxf3+ {[%clk 0:00:19]} 42. Kh6 {[%clk 0:00:08.7]} 42... Rh4+ {[%clk 0:00:18.3]}
43. Kg7 {[%clk 0:00:10.6]} 43... Nd4 {[%clk 0:00:18.5]} 44. Raa8 {[%clk
0:00:11.1]} 44... Ne6+ {[%clk 0:00:19.2]} 45. Kg8 {[%clk 0:00:11.7]} 45... Nxf8
{[%clk 0:00:19.8]} 46. Kxf8 {[%clk 0:00:13.6]} 46... f5 {[%clk 0:00:19.7]} 47.
Kg8 {[%clk 0:00:15.5]} 47... e4 {[%clk 0:00:19.2]} 48. Ra5 {[%clk 0:00:17.4]}
48... e3 {[%clk 0:00:18.7]} 49. Re5 {[%clk 0:00:19.3]} 49... Re4 {[%clk
0:00:18.5]} 50. Rd5+ {[%clk 0:00:18.8]} 50... Kc6 {[%clk 0:00:18.9]} 51. Rd1
{[%clk 0:00:20.7]} 51... e2 {[%clk 0:00:19.1]} 52. Rc1+ {[%clk 0:00:22.6]} 52...
Kd6 {[%clk 0:00:19.1]} 53. Re1 {[%clk 0:00:24.5]} 53... f4 {[%clk 0:00:19.5]}
54. Kg7 {[%clk 0:00:25.3]} 54... f3 {[%clk 0:00:20.8]} 0-1

[Event "*** Titled Tuesday Blitz"]
[Site "Chess.com"]
[Date "2018.11.06"]
[Round "6"]
[White "ahmadzada13"]
[Black "xpto15"]
[Result "0-1"]
[WhiteElo "2619"]
[BlackElo "1371"]
[TimeControl "180+2"]
[EndTime "14:22:01 PST"]
[Termination "xpto15 won by resignation"]

1. e4 {[%clk 0:03:00.4]} 1... e5 {[%clk 0:02:57]} 2. Nf3 {[%clk 0:03:01]} 2...
Nc6 {[%clk 0:02:47.6]} 3. Bb5 {[%clk 0:03:00.8]} 3... f5 {[%clk 0:02:47.5]} 4.
d3 {[%clk 0:03:00.5]} 4... fxe4 {[%clk 0:02:48]} 5. dxe4 {[%clk 0:02:58.7]} 5...
Nf6 {[%clk 0:02:49.9]} 6. Nc3 {[%clk 0:02:58.9]} 6... Bb4 {[%clk 0:02:50.5]} 7.
O-O {[%clk 0:02:54]} 7... Bxc3 {[%clk 0:02:51.1]} 8. bxc3 {[%clk 0:02:54.5]}
8... d6 {[%clk 0:02:46.1]} 9. Bc4 {[%clk 0:02:48.8]} 9... Na5 {[%clk 0:02:46.4]}
10. Bd3 {[%clk 0:02:37.7]} 10... O-O {[%clk 0:02:34.1]} 11. Nd2 {[%clk
0:02:37.8]} 11... Qe8 {[%clk 0:02:32.4]} 12. f3 {[%clk 0:02:29.8]} 12... Nh5
{[%clk 0:02:31.7]} 13. Nc4 {[%clk 0:02:29.7]} 13... Nxc4 {[%clk 0:02:30.8]} 14.
Bxc4+ {[%clk 0:02:31.6]} 14... Kh8 {[%clk 0:02:32.7]} 15. Be3 {[%clk 0:02:23.8]}
15... Nf4 {[%clk 0:02:31.9]} 16. Bxf4 {[%clk 0:02:24.1]} 16... Rxf4 {[%clk
0:02:32.6]} 17. Bd5 {[%clk 0:02:24.3]} 17... c6 {[%clk 0:02:27.3]} 18. Bb3
{[%clk 0:02:24.4]} 18... Rf6 {[%clk 0:02:28.8]} 19. Qd2 {[%clk 0:02:24.2]} 19...
Qg6 {[%clk 0:02:28.1]} 20. Rad1 {[%clk 0:02:21.7]} 20... Bd7 {[%clk 0:02:29.5]}
21. Kh1 {[%clk 0:02:19.6]} 21... Raf8 {[%clk 0:02:30]} 22. Qe3 {[%clk
0:02:18.1]} 22... b6 {[%clk 0:02:30.1]} 23. Rd2 {[%clk 0:02:15]} 23... h5 {[%clk
0:02:18.3]} 24. Rfd1 {[%clk 0:02:09.9]} 24... h4 {[%clk 0:02:14.5]} 25. Qe1
{[%clk 0:01:59.2]} 25... Qh6 {[%clk 0:02:09.1]} 26. h3 {[%clk 0:01:27.7]} 26...
Rg6 {[%clk 0:01:53.9]} 27. Rd3 {[%clk 0:01:22.5]} 27... Rff6 {[%clk 0:01:53.7]}
28. R1d2 {[%clk 0:01:09.1]} 28... Rg3 {[%clk 0:01:53.7]} 29. Qd1 {[%clk
0:00:58.6]} 29... Qg5 {[%clk 0:01:23.8]} 30. Rxd6 {[%clk 0:00:21.3]} 30... Rxd6
{[%clk 0:00:23.7]} 31. Rxd6 {[%clk 0:00:23.2]} 31... Bxh3 {[%clk 0:00:25.6]} 32.
Rd8+ {[%clk 0:00:21.2]} 32... Kh7 {[%clk 0:00:27]} 33. Bg8+ {[%clk 0:00:19.4]}
33... Kh6 {[%clk 0:00:27.6]} 34. Rd6+ {[%clk 0:00:09.6]} 34... g6 {[%clk
0:00:26.2]} 35. Qd2 {[%clk 0:00:09.2]} 35... Bxg2+ {[%clk 0:00:25.8]} 36. Kh2
{[%clk 0:00:10]} 36... Rh3+ {[%clk 0:00:26.6]} 37. Kg1 {[%clk 0:00:10.1]} 37...
Rh1+ {[%clk 0:00:24.3]} 38. Kf2 {[%clk 0:00:10.9]} 38... Rf1+ {[%clk 0:00:23.9]}
39. Ke2 {[%clk 0:00:11.2]} 39... Qxd2+ {[%clk 0:00:23.9]} 40. Rxd2 {[%clk
0:00:08.3]} 40... Rxf3 {[%clk 0:00:21.7]} 41. Be6 {[%clk 0:00:08]} 41... h3
{[%clk 0:00:21.9]} 42. Bg4 {[%clk 0:00:08.7]} 42... Rg3 {[%clk 0:00:22.9]} 43.
Be6 {[%clk 0:00:04.3]} 43... h2 {[%clk 0:00:23.5]} 44. Kf2 {[%clk 0:00:05.3]}
44... h1=Q {[%clk 0:00:23.6]} 45. Kxg3 {[%clk 0:00:06.2]} 45... Qe1+ {[%clk
0:00:20.4]} 46. Rf2 {[%clk 0:00:06.5]} 46... Bxe4 {[%clk 0:00:21.8]} 47. Bh3
{[%clk 0:00:05.5]} 47... Qe3+ {[%clk 0:00:22.9]} 0-1

[Event "*** Titled Tuesday Blitz"]
[Site "Chess.com"]
[Date "2018.11.06"]
[Round "6"]
[White "Zarikovs1999"]
[Black "PrascaR"]
[Result "0-1"]
[WhiteElo "2348"]
[BlackElo "2532"]
[TimeControl "180+2"]
[EndTime "14:22:07 PST"]
[Termination "PrascaR won by resignation"]

1. b3 {[%clk 0:03:01.9]} 1... d5 {[%clk 0:03:00.6]} 2. Bb2 {[%clk 0:03:02.8]}
2... Bg4 {[%clk 0:03:01.6]} 3. Nf3 {[%clk 0:02:59.7]} 3... c6 {[%clk 0:02:58.7]}
4. e3 {[%clk 0:02:58.2]} 4... Nf6 {[%clk 0:02:57.4]} 5. Be2 {[%clk 0:02:59.4]}
5... Nbd7 {[%clk 0:02:55.8]} 6. d4 {[%clk 0:03:00.5]} 6... e6 {[%clk 0:02:56]}
7. Ne5 {[%clk 0:03:01.8]} 7... Bxe2 {[%clk 0:02:55.1]} 8. Qxe2 {[%clk
0:03:03.7]} 8... Nxe5 {[%clk 0:02:52.4]} 9. dxe5 {[%clk 0:03:05.6]} 9... Nd7
{[%clk 0:02:49.9]} 10. f4 {[%clk 0:03:06.8]} 10... Qa5+ {[%clk 0:02:42.1]} 11.
Qd2 {[%clk 0:02:54.2]} 11... Qxd2+ {[%clk 0:02:26.3]} 12. Nxd2 {[%clk
0:02:53.8]} 12... O-O-O {[%clk 0:02:27.3]} 13. Ke2 {[%clk 0:02:51.6]} 13... Bb4
{[%clk 0:02:26.2]} 14. Nf3 {[%clk 0:02:50]} 14... h6 {[%clk 0:02:26.9]} 15. c4
{[%clk 0:02:49]} 15... dxc4 {[%clk 0:02:16]} 16. bxc4 {[%clk 0:02:47.9]} 16...
Nb6 {[%clk 0:02:16.8]} 17. Rac1 {[%clk 0:02:45.3]} 17... Na4 {[%clk 0:02:16]}
18. Rc2 {[%clk 0:02:33.5]} 18... Rd7 {[%clk 0:02:06.5]} 19. Rd1 {[%clk
0:02:31.9]} 19... Rhd8 {[%clk 0:02:06.3]} 20. Rxd7 {[%clk 0:02:30.9]} 20... Rxd7
{[%clk 0:02:07.4]} 21. g4 {[%clk 0:02:16.9]} 21... a6 {[%clk 0:01:50.1]} 22. Nd4
{[%clk 0:02:13.5]} 22... Nc5 {[%clk 0:01:37.3]} 23. Bc3 {[%clk 0:02:01.5]} 23...
Ba3 {[%clk 0:01:20.6]} 24. Bb2 {[%clk 0:01:58.8]} 24... Bb4 {[%clk 0:01:05.9]}
25. Bc3 {[%clk 0:01:57.9]} 25... a5 {[%clk 0:00:55.9]} 26. Bxb4 {[%clk
0:01:45.8]} 26... axb4 {[%clk 0:00:56.1]} 27. a3 {[%clk 0:01:44.7]} 27... bxa3
{[%clk 0:00:37.4]} 28. Ra2 {[%clk 0:01:44.4]} 28... Na6 {[%clk 0:00:36.2]} 29.
Rxa3 {[%clk 0:01:44.1]} 29... Kc7 {[%clk 0:00:37.1]} 30. h4 {[%clk 0:01:29.9]}
30... Re7 {[%clk 0:00:37.6]} 31. Kf3 {[%clk 0:01:23.6]} 31... Rd7 {[%clk
0:00:38]} 32. h5 {[%clk 0:01:19.5]} 32... Re7 {[%clk 0:00:39]} 33. Ke2 {[%clk
0:01:19.2]} 33... Kb6 {[%clk 0:00:38.1]} 34. g5 {[%clk 0:01:05.2]} 34... Re8
{[%clk 0:00:34.5]} 35. Ra1 {[%clk 0:00:59]} 35... hxg5 {[%clk 0:00:21.8]} 36.
fxg5 {[%clk 0:00:59.2]} 36... Rh8 {[%clk 0:00:23.7]} 37. Rb1+ {[%clk 0:01:00.1]}
37... Kc7 {[%clk 0:00:24.2]} 38. g6 {[%clk 0:00:53.4]} 38... fxg6 {[%clk
0:00:23.6]} 39. hxg6 {[%clk 0:00:55.2]} 39... Nc5 {[%clk 0:00:21.6]} 40. Rf1
{[%clk 0:00:49.5]} 40... Rg8 {[%clk 0:00:20.6]} 41. Rf7+ {[%clk 0:00:47.8]}
41... Kb6 {[%clk 0:00:21.6]} 42. Re7 {[%clk 0:00:48.3]} 42... Ka5 {[%clk
0:00:20.7]} 43. Nxe6 {[%clk 0:00:49]} 43... Nxe6 {[%clk 0:00:21.8]} 44. Rxe6
{[%clk 0:00:49.8]} 44... Kb4 {[%clk 0:00:23.7]} 45. Kd3 {[%clk 0:00:44.5]} 45...
Kc5 {[%clk 0:00:24.9]} 46. Re7 {[%clk 0:00:43.9]} 46... b5 {[%clk 0:00:25.9]}
47. cxb5 {[%clk 0:00:44.4]} 47... cxb5 {[%clk 0:00:27.8]} 48. Rd7 {[%clk
0:00:41]} 48... b4 {[%clk 0:00:25.5]} 49. e6 {[%clk 0:00:40.4]} 49... Kb5 {[%clk
0:00:19.5]} 50. e7 {[%clk 0:00:40]} 50... Re8 {[%clk 0:00:20.2]} 51. Ke4 {[%clk
0:00:37.6]} 51... b3 {[%clk 0:00:20]} 52. Ke5 {[%clk 0:00:38.6]} 52... b2 {[%clk
0:00:19.9]} 53. Ke6 {[%clk 0:00:34.7]} 53... Kc6 {[%clk 0:00:20.9]} 54. Rd8
{[%clk 0:00:19.8]} 54... b1=Q {[%clk 0:00:21.1]} 55. Rxe8 {[%clk 0:00:20.6]}
55... Qxg6+ {[%clk 0:00:22.2]} 0-1

[Event "*** Titled Tuesday Blitz"]
[Site "Chess.com"]
[Date "2018.11.06"]
[Round "6"]
[White "chesstatour"]
[Black "novocane"]
[Result "0-1"]
[WhiteElo "2077"]
[BlackElo "2160"]
[TimeControl "180+2"]
[EndTime "14:22:08 PST"]
[Termination "novocane won by resignation"]

1. c4 {[%clk 0:03:01.9]} 1... e5 {[%clk 0:02:58.1]} 2. Nc3 {[%clk 0:03:03.8]}
2... Bb4 {[%clk 0:02:57.8]} 3. g3 {[%clk 0:03:04.2]} 3... Bxc3 {[%clk
0:02:58.5]} 4. bxc3 {[%clk 0:03:06.1]} 4... Nc6 {[%clk 0:02:59.7]} 5. Bg2 {[%clk
0:03:06.8]} 5... d6 {[%clk 0:03:00.9]} 6. d3 {[%clk 0:03:08.4]} 6... Nge7 {[%clk
0:03:02]} 7. e4 {[%clk 0:03:10.1]} 7... Be6 {[%clk 0:03:02]} 8. Ne2 {[%clk
0:03:11.7]} 8... Qd7 {[%clk 0:03:02.4]} 9. Rb1 {[%clk 0:03:06.1]} 9... b6 {[%clk
0:03:02.5]} 10. h4 {[%clk 0:02:52.7]} 10... O-O {[%clk 0:02:59.7]} 11. f4 {[%clk
0:02:31.6]} 11... f5 {[%clk 0:02:54.9]} 12. exf5 {[%clk 0:02:22.7]} 12... Bxf5
{[%clk 0:02:47]} 13. fxe5 {[%clk 0:02:23.7]} 13... Nxe5 {[%clk 0:02:41]} 14. Nf4
{[%clk 0:02:21.6]} 14... Bg4 {[%clk 0:02:12.3]} 15. Qc2 {[%clk 0:02:17.6]} 15...
Nf3+ {[%clk 0:02:07.1]} 16. Kf2 {[%clk 0:02:16.5]} 16... Ne5 {[%clk 0:01:44.4]}
17. Be3 {[%clk 0:01:49.1]} 17... Rae8 {[%clk 0:01:26]} 18. Rbe1 {[%clk
0:01:44.1]} 18... Bf5 {[%clk 0:01:22.4]} 19. Kg1 {[%clk 0:01:23.5]} 19... Kh8
{[%clk 0:01:19.6]} 20. Nd5 {[%clk 0:01:12.2]} 20... Nxc4 {[%clk 0:01:10.1]} 21.
Nxe7 {[%clk 0:01:05.6]} 21... Rxe7 {[%clk 0:00:59.9]} 22. Bf2 {[%clk 0:01:01.3]}
22... Rxe1+ {[%clk 0:00:51.2]} 23. Bxe1 {[%clk 0:01:00]} 23... Ne3 {[%clk
0:00:49.2]} 24. Qd2 {[%clk 0:00:56.2]} 24... Nxg2 {[%clk 0:00:44.1]} 25. Kxg2
{[%clk 0:00:57.2]} 25... Qc6+ {[%clk 0:00:36.5]} 26. Kh2 {[%clk 0:00:53.6]}
26... Qf3 {[%clk 0:00:24.2]} 27. d4 {[%clk 0:00:50.5]} 27... Be4 {[%clk
0:00:21.6]} 28. Rg1 {[%clk 0:00:51.5]} 28... h6 {[%clk 0:00:20.5]} 29. c4 {[%clk
0:00:45.5]} 29... a6 {[%clk 0:00:18.8]} 30. Qb2 {[%clk 0:00:40.5]} 30... d5
{[%clk 0:00:17]} 31. c5 {[%clk 0:00:37.5]} 31... b5 {[%clk 0:00:17.6]} 32. Qd2
{[%clk 0:00:35.5]} 32... c6 {[%clk 0:00:17.6]} 33. Qb2 {[%clk 0:00:33.5]} 33...
Rf7 {[%clk 0:00:18.6]} 34. Ba5 {[%clk 0:00:32.6]} 34... Rf5 {[%clk 0:00:18.5]}
35. Qd2 {[%clk 0:00:31.9]} 35... h5 {[%clk 0:00:19.7]} 36. Qe1 {[%clk
0:00:30.9]} 36... Qf2+ {[%clk 0:00:19.3]} 37. Qxf2 {[%clk 0:00:21.5]} 37...
Rxf2+ {[%clk 0:00:21.2]} 38. Kh3 {[%clk 0:00:22.9]} 38... Bf5+ {[%clk
0:00:22.1]} 39. g4 {[%clk 0:00:23.5]} 39... hxg4+ {[%clk 0:00:19]} 40. Kg3
{[%clk 0:00:23.3]} 40... Rf3+ {[%clk 0:00:20.2]} 41. Kg2 {[%clk 0:00:22]} 41...
Ra3 {[%clk 0:00:21]} 42. Bc7 {[%clk 0:00:20.3]} 42... Be4+ {[%clk 0:00:20.7]}
43. Kf2 {[%clk 0:00:19.7]} 43... Rf3+ {[%clk 0:00:19.5]} 44. Ke2 {[%clk
0:00:18.6]} 44... Bd3+ {[%clk 0:00:20.2]} 45. Kd2 {[%clk 0:00:17.8]} 45... Bf5
{[%clk 0:00:21]} 46. Ke2 {[%clk 0:00:16.2]} 46... Ra3 {[%clk 0:00:21.2]} 47. Bd6
{[%clk 0:00:15.4]} 47... Rxa2+ {[%clk 0:00:22]} 48. Ke3 {[%clk 0:00:16.8]} 48...
Ra3+ {[%clk 0:00:22.8]} 49. Kf4 {[%clk 0:00:17.9]} 49... Rf3+ {[%clk 0:00:23.7]}
50. Kg5 {[%clk 0:00:18.4]} 50... Kh7 {[%clk 0:00:24.9]} 51. h5 {[%clk
0:00:18.1]} 51... Be6 {[%clk 0:00:25.7]} 52. Be5 {[%clk 0:00:16.6]} 52... Rf5+
{[%clk 0:00:26.5]} 53. Kh4 {[%clk 0:00:18]} 53... Rf3 {[%clk 0:00:26.8]} 54. Kg5
{[%clk 0:00:18.6]} 54... Rf5+ {[%clk 0:00:27.8]} 55. Kh4 {[%clk 0:00:19.4]}
55... a5 {[%clk 0:00:28]} 56. Rxg4 {[%clk 0:00:18.3]} 56... Rxe5 {[%clk
0:00:29.1]} 57. Rxg7+ {[%clk 0:00:15.9]} 57... Kxg7 {[%clk 0:00:29.1]} 58. dxe5
{[%clk 0:00:17.1]} 58... a4 {[%clk 0:00:30]} 0-1